[Event "Romanian Women Championship 2024"]
[Site "Eforie Nord"]
[Date "2024.02.29"]
[Round "7.3"]
[White "Ciolacu, Alessia-Mihaela"]
[Black "Schiopu, Oana-Magdalena"]
[Result "1-0"]
[ECO "E27"]
[WhiteElo "2175"]
[BlackElo "1750"]
[Annotator "RC"]
[PlyCount "81"]
[EventDate "2024.02.24"]
[EventType "swiss"]
[EventCountry "ROU"]
[SourceTitle "playchess.com"]
[Source "ChessBase"]
[SourceQuality "1"]
[TimeControl "40/5400+30:900+30"]

1. d4 {[%emt 0:00:04]} Nf6 {[%emt 0:00:09]} 2. c4 {[%emt 0:00:05]} e6 {[%emt 0:00:10]} 3. Nc3 {[%emt 0:00:07]} Bb4 {[%emt 0:00:24]} 4. a3 {[%emt 0:00:12]} Bxc3+ {[%emt 0:00:27]} 5. bxc3 {[%emt 0:00:06]} b6 {[%emt 0:00:32]} 6. f3 {[%emt 0:00:42]} d5 {[%emt 0:01:10]} 7. cxd5 {[%emt 0:00:39]} exd5 {[%emt 0:00:51]} 8. e3 {[%emt 0:00:55]} O-O {[%emt 0:02:51]} 9. Bd3 {[%emt 0:00:46]} c5 {[%emt 0:02:48]} 10. Ne2 {[%emt 0:01:10]} Re8 {[%emt 1:26:08]} 11. O-O Nbd7 12. Ra2 Nf8 13. Ng3 Bb7 14. Re2 cxd4 15. cxd4 Rc8 16. Bb2 Ng6 17. Qd2 Qc7 18. Bb5 Re6 19. Rc1 Qb8 20. Rxc8+ Qxc8 21. Re1 Re7 {[%emt 0:00:00]} 22. Bd3 Qb8 {[%emt 0:00:00]} 23. e4 Nf4 {[%emt 0:00:00]} 24. Bb1 Ne6 {[%emt 0:00:00]} 25. e5 Ne8 {[%emt 0:00:00]} 26. f4 Nf8 {[%emt 0:00:00]} 27. f5 Bc8 {[%emt 0:00:00]} 28. Bc3 a5 {[%emt 0:00:00]} 29. Nh5 f6 {[%emt 0:00:00]} 30. Nf4 Bb7 {[%emt 0:00:00]} 31. Re3 Qc8 {[%emt 0:00:00]} 32. Rg3 Rc7 {[%emt 0:00:00]} 33. Nh5 Kh8 {[%emt 0:00:00]} 34. exf6 Nxf6 {[%emt 0:00:00]} 35. Nxf6 gxf6 {[%emt 0:00:00]} 36. Qh6 Qd8 {[%emt 0:00:00]} 37. Bd2 Ba6 {[%emt 0:00:00]} 38. h3 Bc4 {[%emt 0:00:00]} 39. Qh5 Rg7 {[%emt 0:00:00]} 40. Rxg7 Kxg7 {[%emt 0:00:00]} 41. Bh6+ 1-0

[Event "Romanian Women Championship 2024"]
[Site "Eforie Nord"]
[Date "2024.02.29"]
[Round "7.4"]
[White "Batagan, Ilinca-Petra"]
[Black "Peptan, Corina-Isabela"]
[Result "0-1"]
[ECO "B08"]
[WhiteElo "1859"]
[BlackElo "2314"]
[Annotator "TA"]
[PlyCount "146"]
[EventDate "2024.02.24"]
[EventType "swiss"]
[EventCountry "ROU"]
[SourceTitle "playchess.com"]
[Source "ChessBase"]
[SourceQuality "1"]
[TimeControl "40/5400+30:900+30"]

{[%evp 13,146,-5,1,0,-1,-15,0,0,0,-32,-35,-27,-14,-45,-42,-33,-33,-84,-83,-127,-93,-110,-66,-74,-77,-60,-77,-93,-48,-52,-33,-54,-36,-64,-51,-77,-70,-81,-74,-137,-137,-127,-124,-187,-195,-186,-205,-199,-186,-304,-204,-235,-225,-255,-255,-243,-142,-180,-174,-186,-193,-187,-184,-203,-191,-183,-175,-192,-135,-120,-76,-200,-200,-200,-200,-200,-200,-200,-200,-293,-283,-260,-245,-234,-226,-499,-485,-484,-463,-1633,-1557,-1569,-1503,-2372,-1882,-29961,-29962,-29962,-29964,-29964,-29965,-29971,-29972,-29972,-29973,-29974,-29974,-29973,-29974,-29975,-29976,-29976,-29976,-29976,-29977,-29977,-29978,-29978,-29979,-29979,-29980,-29980,-29981,-29984,-29985,-29985,-29986,-29986,-29987,-29987,-29987,-29983,-29984,-29984,-29984]} 1. e4 {[%emt 0:00:03]} d6 {[%emt 0:05:41]} 2. d4 {[%emt 0:02:14]} Nf6 {[%emt 0:00:38]} 3. Nc3 {[%emt 0:01:17]} g6 {[%emt 0:00:07]} 4. Nf3 {[%emt 0:01:19]} Bg7 {[%emt 0:00:24]} 5. Bc4 {[%emt 0:18:46]} c6 {[%emt 0:01:39]} 6. a4 {[%emt 0:00:59]} O-O {[%emt 0:02:51]} 7. O-O {[%emt 0:01:13]} d5 {[%emt 0:02:57]} 8. exd5 {[%emt 0:02:04]} cxd5 {[%emt 0:00:10]} 9. Be2 {[%emt 0:04:55]} Nc6 {[%emt 0:03:23]} 10. Ne5 {[%emt 0:06:56] The position is equal.} Qb6 {[%emt 0:16:44]} 11. Nxc6 {[%emt 0:08:15]} bxc6 {[%emt 0:00:09]} 12. a5 {[%emt 0:04:37]} Qc7 {[%emt 0:00:02]} 13. Bg5 {[%emt 0:01:38]} e5 {[%emt 0:06:42]} 14. dxe5 {[%emt 0:03:33]} Qxe5 {[%emt 0:00:02]} 15. Bh4 {[%emt 0:06:29]} (15. Be3 $15) 15... Ne4 $17 {[%emt 0:05:56]} 16. Bg3 {[%emt 0:09:54]} Nxg3 {[%emt 0:00:39]} 17. hxg3 {[%emt 0:00:08]} d4 {[%emt 0:08:14]} 18. Nb1 {[%emt 0:03:51]} Rb8 {[%emt 0:02:31]} 19. Nd2 {[%emt 0:00:46]} Be6 {[%emt 0:00:11]} ({Not} 19... Rxb2 20. Nc4 Qb5 21. Nxb2 Qxb2 22. Bd3 $16) 20. Nc4 {[%emt 0:07:17]} Qc5 {[%emt 0:00:25] Black is much more active.} 21. Ra4 {[%emt 0:02:59]} h5 {[%emt 0:08:14]} 22. b3 {[%emt 0:01:16]} Qe7 {[%emt 0:01:41]} 23. Bf3 {[%emt 0:03:06]} c5 {[%emt 0:01:05]} 24. Qe2 {[%emt 0:03:11]} Rfe8 {[%emt 0:04:29]} 25. Bc6 {[%emt 0:01:14]} Red8 {[%emt 0:04:14][%cal Od4d3]} 26. Re1 {[%emt 0:00:28] [#]} (26. Nb2 $142) 26... d3 $1 {[%emt 0:05:05][%mdl 512]} 27. cxd3 {[%emt 0:00:44]} Rxb3 {[%emt 0:00:06]} 28. Ra3 {[%emt 0:01:51]} (28. Ne5 $17 {was worth a try.}) 28... Rxa3 $19 {[%emt 0:04:35]} 29. Nxa3 {[%emt 0:00:01]} Qc7 {[%emt 0:02:51][%csl LRa5,LRc6]} 30. Be4 {[%emt 0:01:47]} Qxa5 {[%emt 0:01:17]} 31. Nc2 {[%emt 0:00:58]} (31. Nc4 $142 Bxc4 32. dxc4) 31... Bg4 {[%emt 0:06:27] This pair of bishops is nice.} 32. f3 {[%emt 0:00:14]} Bc8 {[%emt 0:00:06] White is weak on the dark squares} 33. Ne3 {[%emt 0:01:15]} Qc7 {[%emt 0:01:03]} 34. f4 {[%emt 0:00:44]} Bb7 {[%emt 0:02:35]} ({Black should play} 34... a5 $19 {And now ...Bd4 would win.} 35. Kh2 a4) 35. Bxb7 {[%emt 0:00:34]} Qxb7 {[%emt 0:00:01]} 36. Nc4 {[%emt 0:00:16]} Qd7 {[%emt 0:00:54][%cal Og7c3]} 37. Ne5 {[%emt 0:00:32]} Qd5 {[%emt 0:01:25]} 38. Qe4 {[%emt 0:00:35]} Bxe5 {[%emt 0:02:59]} 39. Qxe5 {[%emt 0:00:02]} Qxd3 {[%emt 0:00:45][%mdl 4096] Endgame. KQR-KQR} 40. Kh2 {[%emt 0:00:00]} Qd5 {[%emt 0:00:00]} ({Black should try} 40... Qd4 $19 {...Qxe5 would now be deadly.} 41. Qc7 h4 42. gxh4 Rd5) 41. Qc7 $17 {[%emt 0:05:04][%cal Oe1e7]} c4 {[%emt 0:06:14]} 42. Rc1 {[%emt 0:03:54] [#] This costs White the game.} (42. Re7 $17) 42... Re8 $1 $19 {[%emt 0:00:51]} 43. Qxc4 {[%emt 0:00:51]} Qxc4 {[%emt 0:01:37]} 44. Rxc4 {[%emt 0:00:09] KR-KR} a5 {[%emt 0:00:03]} 45. Ra4 {[%emt 0:04:49]} Ra8 {[%emt 0:00:01]} 46. Kg1 {[%emt 0:02:12]} (46. f5 $142) 46... Kg7 {[%emt 0:00:43]} 47. Kf2 {[%emt 0:00:25]} Kf6 {[%emt 0:00:01]} 48. Ke3 {[%emt 0:00:56]} Kf5 {[%emt 0:00:02]} 49. Kd4 $2 {[%emt 0:00:17]} (49. Kf3 {keeps fighting.}) 49... Kg4 {[%emt 0:01:01]} 50. Ra3 {[%emt 0:00:15]} a4 {[%emt 0:01:20] aiming for ...f5.} 51. Kc5 {[%emt 0:01:33]} (51. f5 $142) 51... f5 {[%emt 0:05:34]} 52. Kd5 {[%emt 0:01:43]} Re8 {[%emt 0:02:14]} 53. Rxa4 {[%emt 0:00:36]} Kxg3 {[%emt 0:00:05]} 54. Ra6 {[%emt 0:00:13]} Kxg2 {[%emt 0:00:29] Black mates.} 55. Rxg6+ {[%emt 0:00:07]} Kf3 {[%emt 0:00:03]} 56. Rg5 {[%emt 0:00:31]} Kxf4 {[%emt 0:01:48]} 57. Rxh5 {[%emt 0:00:04]} Kg4 {[%emt 0:00:05]} 58. Rh7 {[%emt 0:00:30]} f4 {[%emt 0:00:07]} 59. Rg7+ {[%emt 0:00:29]} Kh3 {[%emt 0:00:07]} 60. Rf7 {[%emt 0:00:20]} Kg3 {[%emt 0:00:02]} 61. Kd4 {[%emt 0:00:44]} f3 {[%emt 0:00:08]} 62. Kd3 {[%emt 0:00:50]} f2 {[%emt 0:00:06]} 63. Rg7+ {[%emt 0:00:14]} Kh2 {[%emt 0:05:02]} 64. Rh7+ {[%emt 0:00:26]} Kg2 {[%emt 0:00:00]} 65. Rg7+ {[%emt 0:00:15]} Kf1 {[%emt 0:00:00]} 66. Kd2 {[%emt 0:00:19]} Rd8+ {[%emt 0:00:00]} 67. Kc2 {[%emt 0:01:20]} Rd5 {[%emt 0:00:00]} 68. Rg8 {[%emt 0:00:36]} Ke2 {[%emt 0:00:00]} 69. Re8+ {[%emt 0:00:07] [#]} Kf3 $1 {[%emt 0:00:00]} 70. Rf8+ {[%emt 0:00:05]} Ke3 {[%emt 0:00:00]} 71. Kc3 {[%emt 0:00:38]} Rc5+ {[%emt 0:00:00]} 72. Kb4 {[%emt 0:00:10]} Rc1 {[%emt 0:00:00]} 73. Re8+ {[%emt 0:00:18]} Kd2 {[%emt 0:00:00] Weighted Error Value: White=0.51/Black=0.11 (very precise) .  Mistake:       	White=8     	Black=2      Inaccurate:     	White=5     	Black=4      OK:         	White=13    	Black=19     Best:        	White=1     	Black=2      Strong:       	---       	Black=1} 0-1

[Event "Romanian Women Championship 2024"]
[Site "Eforie Nord"]
[Date "2024.02.29"]
[Round "7.5"]
[White "Vorniceanu, Alina"]
[Black "Trifoi, Mihaela-Ioana"]
[Result "0-1"]
[ECO "D02"]
[WhiteElo "1476"]
[BlackElo "2003"]
[Annotator "NA RC"]
[PlyCount "108"]
[EventDate "2024.02.24"]
[EventType "swiss"]
[EventCountry "ROU"]
[SourceTitle "playchess.com"]
[Source "ChessBase"]
[SourceQuality "1"]
[TimeControl "40/5400+30:900+30"]

1. d4 {[%emt 0:00:04]} d5 {[%emt 0:00:11]} 2. Nf3 {[%emt 0:00:04]} Nf6 {[%emt 0:00:09]} 3. Bf4 {[%emt 0:00:06]} e6 {[%emt 0:00:07]} 4. e3 {[%emt 0:00:07]} c5 {[%emt 0:00:19]} 5. Nc3 {[%emt 0:00:06]} a6 {[%emt 0:03:26]} 6. dxc5 {[%emt 0:00:07]} Bxc5 {[%emt 0:00:09]} 7. Bd3 {[%emt 0:00:04]} Bd6 {[%emt 0:02:27]} 8. Bxd6 {[%emt 0:03:45]} Qxd6 {[%emt 0:00:08]} 9. e4 {[%emt 0:00:02]} dxe4 {[%emt 0:01:19]} 10. Bxe4 {[%emt 0:06:54]} Nxe4 {[%emt 0:06:00]} 11. Nxe4 {[%emt 0:00:07]} Qb4+ {[%emt 0:00:28]} 12. Nfd2 {[%emt 0:01:14]} O-O {[%emt 0:02:23]} 13. Qc1 {[%emt 0:05:10]} b5 {[%emt 0:00:53]} 14. a3 {[%emt 0:03:50]} Qd4 {[%emt 0:01:32]} 15. c3 {[%emt 0:00:59]} Qe5 {[%emt 0:00:05]} 16. O-O {[%emt 0:02:32]} Bb7 {[%emt 0:00:03]} 17. f4 {[%emt 0:14:29]} Qd5 {[%emt 0:03:59]} 18. Rf2 {[%emt 0:00:16]} Nd7 {[%emt 0:02:07]} 19. Qc2 {[%emt 0:07:34]} h6 {[%emt 0:02:18]} 20. Re1 {[%emt 0:02:59]} Rfd8 {[%emt 0:14:35]} 21. Nf3 {[%emt 0:05:48]} Nc5 {[%emt 0:07:33]} 22. Nxc5 {[%emt 0:02:56]} Qxc5 {[%emt 0:00:09]} 23. Kh1 {[%emt 0:08:15]} Bxf3 {[%emt 0:05:43]} 24. gxf3 {[%emt 0:05:36]} Ra7 {[%emt 0:18:39]} 25. Rg2 {[%emt 0:09:15]} g6 {[%emt 0:03:54]} 26. Rxe6 {[%emt 0:11:06]} Qh5 {[%emt 0:08:13]} 27. Re3 {[%emt 0:04:23]} Rad7 {[%emt 0:00:22]} 28. Qf2 {[%emt 0:01:05]} Rd1+ {[%emt 0:02:18]} 29. Rg1 {[%emt 0:00:29]} Qf5 {[%emt 0:05:51]} 30. Qh4 {[%emt 0:02:58]} Qd5 {[%emt 0:05:30]} 31. Rxd1 {[%emt 0:02:15]} Qxd1+ {[%emt 0:00:07]} 32. Qe1 {[%emt 0:00:17]} Qxe1+ {[%emt 0:02:56]} 33. Rxe1 {[%emt 0:00:05]} Rd2 {[%emt 0:00:05]} 34. f5 {[%emt 0:01:41]} gxf5 {[%emt 0:00:33]} 35. Re5 {[%emt 0:00:24]} Rxb2 {[%emt 0:00:15]} 36. Rxf5 {[%emt 0:00:11]} Kg7 {[%emt 0:00:16]} 37. c4 {[%emt 0:01:10]} bxc4 {[%emt 0:00:07]} 38. Rc5 {[%emt 0:00:12]} Rb3 {[%emt 0:00:55]} 39. a4 {[%emt 0:00:19]} c3 {[%emt 0:00:47]} 40. Rc4 {[%emt 0:00:00]} Rb1+ {[%emt 0:00:00]} 41. Kg2 {[%emt 0:01:05]} Rb2+ {[%emt 0:02:42]} 42. Kg3 {[%emt 0:00:20]} c2 {[%emt 0:00:07]} 43. h3 {[%emt 0:01:23]} a5 {[%emt 0:00:15]} 44. Rc6 {[%emt 0:00:46]} Ra2 {[%emt 0:00:32]} 45. Rc4 {[%emt 0:00:16]} Kf6 {[%emt 0:00:47]} 46. Rc5 {[%emt 0:02:17]} Ke6 {[%emt 0:00:37]} 47. f4 {[%emt 0:01:17]} Kd6 {[%emt 0:00:42]} 48. Rc8 {[%emt 0:01:35]} Kd5 {[%emt 0:00:06]} 49. Kg4 {[%emt 0:01:46]} Kd4 {[%emt 0:00:13]} 50. Kh5 {[%emt 0:00:40]} Kd3 {[%emt 0:00:15]} 51. Rd8+ {[%emt 0:01:00]} Kc3 {[%emt 0:00:24]} 52. Rc8+ {[%emt 0:00:11]} Kb2 {[%emt 0:00:12]} 53. Rb8+ {[%emt 0:00:07]} Ka1 {[%emt 0:00:10]} 54. Rc8 {[%emt 0:00:15]} Kb1 {[%emt 0:00:05]} 0-1

[Event "Romanian Women Championship 2024"]
[Site "Eforie Nord"]
[Date "2024.02.29"]
[Round "7.6"]
[White "Iordache, Alexia-Andreea"]
[Black "Chicarosie, Ioana-Bianca"]
[Result "1-0"]
[ECO "B07"]
[WhiteElo "1769"]
[BlackElo "1705"]
[Annotator "NA RC"]
[PlyCount "135"]
[EventDate "2024.02.24"]
[EventType "swiss"]
[EventCountry "ROU"]
[SourceTitle "playchess.com"]
[Source "ChessBase"]
[SourceQuality "1"]
[TimeControl "40/5400+30:900+30"]

1. e4 {[%emt 0:00:02]} d6 {[%emt 0:00:08]} 2. d4 {[%emt 0:00:56]} Nf6 {[%emt 0:00:07]} 3. Nc3 {[%emt 0:00:07]} Nbd7 {[%emt 0:00:06]} 4. f3 {[%emt 0:00:45]} e5 {[%emt 0:00:10]} 5. Nge2 {[%emt 0:01:07]} Be7 {[%emt 0:00:17]} 6. Be3 {[%emt 0:00:13]} c6 {[%emt 0:00:55]} 7. Qd2 {[%emt 0:01:05]} O-O {[%emt 0:01:14]} 8. g4 {[%emt 0:02:04]} b5 {[%emt 0:00:34]} 9. Ng3 {[%emt 0:11:46]} Nb6 {[%emt 0:03:38]} 10. O-O-O {[%emt 0:04:51]} Qc7 {[%emt 0:20:51]} 11. h4 {[%emt 0:15:20]} b4 {[%emt 0:07:30]} 12. Nb1 {[%emt 0:00:25]} a5 {[%emt 0:06:57]} 13. g5 {[%emt 0:07:13]} Ne8 {[%emt 0:00:42]} 14. h5 {[%emt 0:01:27]} exd4 {[%emt 0:01:55]} 15. Bxd4 {[%emt 0:00:28]} c5 {[%emt 0:00:26]} 16. Be3 {[%emt 0:01:06]} Be6 {[%emt 0:03:20]} 17. Nf5 {[%emt 0:10:36]} d5 {[%emt 0:12:49]} 18. g6 {[%emt 0:12:28]} Bxf5 {[%emt 0:03:59]} 19. exf5 {[%emt 0:00:12]} d4 {[%emt 0:00:33]} 20. Bf4 {[%emt 0:06:47]} Bd6 {[%emt 0:00:24]} 21. Bxd6 {[%emt 0:00:07]} Qxd6 {[%emt 0:01:16]} 22. gxh7+ {[%emt 0:04:08]} Kxh7 {[%emt 0:00:25]} 23. Bd3 {[%emt 0:03:25]} Qh6 {[%emt 0:04:39]} 24. f6+ {[%emt 0:00:15]} Kg8 {[%emt 0:00:09]} 25. fxg7 {[%emt 0:03:32]} Qxd2+ {[%emt 0:00:20]} 26. Nxd2 {[%emt 0:02:49]} Nxg7 {[%emt 0:03:13]} 27. Nc4 {[%emt 0:05:02]} Nxc4 {[%emt 0:03:01]} 28. Bxc4 {[%emt 0:00:01]} Kh7 {[%emt 0:01:30]} 29. Rde1 {[%emt 0:01:05]} Kh6 {[%emt 0:02:33]} 30. Re7 {[%emt 0:01:57]} Rae8 {[%emt 0:01:07]} 31. Rxf7 {[%emt 0:01:00]} Rxf7 {[%emt 0:00:09]} 32. Bxf7 {[%emt 0:00:01]} Rf8 {[%emt 0:00:10]} 33. Bd5 {[%emt 0:01:05]} Nxh5 {[%emt 0:01:42]} 34. Kd2 {[%emt 0:01:18]} Kg5 {[%emt 0:01:29]} 35. Rg1+ {[%emt 0:00:30]} Kf4 {[%emt 0:06:43]} 36. Rg4+ {[%emt 0:02:27]} Ke5 {[%emt 0:00:02]} 37. Rg5+ {[%emt 0:00:42]} Rf5 {[%emt 0:00:01]} 38. Rxf5+ {[%emt 0:00:20]} Kxf5 {[%emt 0:00:02]} 39. Kd3 {[%emt 0:00:38]} Nf4+ {[%emt 0:13:08]} 40. Kc4 {[%emt 0:00:00]} Ke5 {[%emt 0:00:00]} 41. Be4 {[%emt 0:01:06]} Kd6 {[%emt 0:03:10]} 42. Kb5 {[%emt 0:00:48]} Ne2 {[%emt 0:01:52]} 43. Kxa5 {[%emt 0:00:56]} Nc1 {[%emt 0:00:18]} 44. Kb5 {[%emt 0:06:26]} Nxa2 {[%emt 0:00:53]} 45. Kc4 {[%emt 0:00:44]} Nc1 {[%emt 0:01:06]} 46. Bd3 {[%emt 0:03:01]} Kc6 {[%emt 0:07:58]} 47. f4 {[%emt 0:02:35]} Kd6 {[%emt 0:01:02]} 48. f5 {[%emt 0:00:27]} b3 {[%emt 0:00:25]} 49. cxb3 {[%emt 0:04:37]} Ke5 {[%emt 0:01:46]} 50. Bc2 {[%emt 0:00:00]} Kf6 {[%emt 0:02:21]} 51. b4 {[%emt 0:00:00]} cxb4 {[%emt 0:01:17]} 52. Kxd4 {[%emt 0:00:06]} b3 {[%emt 0:00:13]} 53. Bb1 {[%emt 0:00:33]} Na2 {[%emt 0:00:33]} 54. Kd5 {[%emt 0:01:03]} Nc1 {[%emt 0:00:18]} 55. Kd4 {[%emt 0:00:35]} Na2 {[%emt 0:00:07]} 56. Bd3 {[%emt 0:00:37]} Nc1 {[%emt 0:00:25]} 57. Ke4 {[%emt 0:00:09]} Na2 {[%emt 0:00:18]} 58. Bc4 {[%emt 0:00:12]} Nc1 {[%emt 0:00:06]} 59. Kf4 {[%emt 0:00:06]} Na2 {[%emt 0:01:55]} 60. Bxb3 {[%emt 0:00:00]} Nb4 {[%emt 0:00:01]} 61. Bc4 {[%emt 0:00:19]} Nc6 {[%emt 0:00:20]} 62. Ke4 {[%emt 0:00:23]} Nd8 {[%emt 0:01:03]} 63. Bd5 {[%emt 0:00:02]} Ke7 {[%emt 0:00:31]} 64. Ke5 {[%emt 0:00:07]} Ke8 {[%emt 0:00:24]} 65. Kd6 {[%emt 0:00:14]} Kf8 {[%emt 0:00:22]} 66. Kd7 {[%emt 0:00:04]} Nf7 {[%emt 0:00:07]} 67. Bxf7 {[%emt 0:00:03]} Kxf7 {[%emt 0:00:05]} 68. b4 {[%emt 0:00:00]} 1-0

[Event "Romanian Women Championship 2024"]
[Site "Eforie Nord"]
[Date "2024.02.29"]
[Round "7.7"]
[White "Hoanca, Alexia-Ioana"]
[Black "Stanciu, Andreea-Briana"]
[Result "0-1"]
[ECO "B76"]
[WhiteElo "1748"]
[BlackElo "1960"]
[Annotator "NA RC"]
[PlyCount "90"]
[EventDate "2024.02.24"]
[EventType "swiss"]
[EventCountry "ROU"]
[SourceTitle "playchess.com"]
[Source "ChessBase"]
[SourceQuality "1"]
[TimeControl "40/5400+30:900+30"]

1. e4 {[%emt 0:00:02]} c5 {[%emt 0:00:23]} 2. Nf3 {[%emt 0:00:13]} d6 {[%emt 0:00:05]} 3. d4 {[%emt 0:00:08]} cxd4 {[%emt 0:00:05]} 4. Nxd4 {[%emt 0:00:05]} Nf6 {[%emt 0:00:04]} 5. Nc3 {[%emt 0:00:24]} g6 {[%emt 0:00:36]} 6. Be3 {[%emt 0:01:39]} Bg7 {[%emt 0:00:12]} 7. f3 {[%emt 0:00:43]} Nc6 {[%emt 0:00:13]} 8. Qd2 {[%emt 0:00:17]} O-O {[%emt 0:00:15]} 9. O-O-O {[%emt 0:00:37]} Bd7 {[%emt 0:08:21]} 10. Nxc6 {[%emt 0:18:20]} Bxc6 {[%emt 0:06:59]} 11. Bh6 {[%emt 0:02:47]} Qa5 {[%emt 0:04:57]} 12. h4 {[%emt 0:17:13]} b5 {[%emt 0:09:18]} 13. Kb1 {[%emt 0:07:28]} b4 {[%emt 0:02:39]} 14. Ne2 {[%emt 0:01:20]} Rfc8 {[%emt 0:06:37]} 15. Bxg7 {[%emt 0:04:17]} Kxg7 {[%emt 0:00:06]} 16. Nd4 {[%emt 0:15:20]} h5 {[%emt 0:10:57]} 17. Bd3 {[%emt 0:05:30]} Bd7 {[%emt 0:02:25]} 18. Nb3 {[%emt 0:00:58]} Qb6 {[%emt 0:00:27]} 19. g4 {[%emt 0:03:05]} a5 {[%emt 0:08:37]} 20. gxh5 {[%emt 0:02:01]} Nxh5 {[%emt 0:00:37]} 21. f4 {[%emt 0:00:58]} Bg4 {[%emt 0:07:04]} 22. Rde1 {[%emt 0:02:30]} a4 {[%emt 0:01:38]} 23. Nc1 {[%emt 0:00:28]} b3 {[%emt 0:03:38]} 24. f5 {[%emt 0:10:48]} bxa2+ {[%emt 0:00:49]} 25. Nxa2 {[%emt 0:01:39]} Rab8 {[%emt 0:00:14]} 26. c3 {[%emt 0:00:40]} Nf4 {[%emt 0:03:43]} 27. Re3 {[%emt 0:01:54]} d5 {[%emt 0:07:51]} 28. Nb4 {[%emt 0:01:26]} Nxd3 {[%emt 0:04:05]} 29. Rxd3 {[%emt 0:00:47]} dxe4 {[%emt 0:00:15]} 30. Re3 {[%emt 0:01:12]} Rd8 {[%emt 0:01:20]} 31. Qf2 {[%emt 0:00:29]} gxf5 {[%emt 0:03:02]} 32. Rg1 {[%emt 0:00:24]} Rd6 {[%emt 0:04:31]} 33. Qf4 {[%emt 0:00:26]} Rbd8 {[%emt 0:00:31]} 34. Ree1 {[%emt 0:00:28]} Kh7 {[%emt 0:00:51]} 35. Qe5 {[%emt 0:00:33]} Re6 {[%emt 0:01:21]} 36. Qf4 {[%emt 0:00:14]} Qd6 {[%emt 0:00:31]} 37. Qf1 {[%emt 0:00:50]} Qd2 {[%emt 0:01:27]} 38. Rg2 {[%emt 0:00:23]} Qxe1+ {[%emt 0:00:30]} 39. Qxe1 {[%emt 0:00:06]} Rd1+ {[%emt 0:00:04]} 40. Qxd1 {[%emt 0:00:00]} Bxd1 {[%emt 0:00:00]} 41. Kc1 {[%emt 0:01:43]} Bb3 {[%emt 0:02:17]} 42. Kd2 {[%emt 0:00:31]} f4 {[%emt 0:00:30]} 43. Ke1 {[%emt 0:02:31]} f3 {[%emt 0:01:14]} 44. Rf2 {[%emt 0:01:35]} Rd6 {[%emt 0:00:32]} 45. Rd2 {[%emt 0:00:56]} e3 {[%emt 0:01:40]} 0-1

[Event "Romanian Women Championship 2024"]
[Site "Eforie Nord"]
[Date "2024.02.29"]
[Round "7.8"]
[White "Badica, Ariana"]
[Black "Pirvulescu, Ekaterina"]
[Result "0-1"]
[ECO "B48"]
[WhiteElo "1494"]
[BlackElo "2091"]
[Annotator "NA RC"]
[PlyCount "60"]
[EventDate "2024.02.24"]
[EventType "swiss"]
[EventCountry "ROU"]
[SourceTitle "playchess.com"]
[Source "ChessBase"]
[SourceQuality "1"]
[TimeControl "40/5400+30:900+30"]

1. e4 {[%emt 0:00:02]} c5 {[%emt 0:00:17]} 2. Nf3 {[%emt 0:00:14]} e6 {[%emt 0:00:15]} 3. d4 {[%emt 0:00:06]} cxd4 {[%emt 0:00:10]} 4. Nxd4 {[%emt 0:00:06]} Nc6 {[%emt 0:00:08]} 5. Nc3 {[%emt 0:00:11]} Qc7 {[%emt 0:00:10]} 6. Be3 {[%emt 0:00:11]} a6 {[%emt 0:00:08]} 7. Qf3 {[%emt 0:00:31]} Nf6 {[%emt 0:01:15]} 8. O-O-O {[%emt 0:00:29]} Ne5 {[%emt 0:01:13]} 9. Qg3 {[%emt 0:00:26]} b5 {[%emt 0:00:41]} 10. Be2 {[%emt 0:12:12]} b4 {[%emt 0:05:47]} 11. Na4 {[%emt 0:01:48]} Nxe4 {[%emt 0:09:55]} 12. Qh4 {[%emt 0:07:02]} Bb7 {[%emt 0:06:58]} 13. f3 {[%emt 0:04:15]} Be7 $19 {[%emt 0:05:17]} 14. Qe1 {[%emt 0:02:52]} Nf6 {[%emt 0:04:59]} 15. f4 {[%emt 0:01:37]} Nc6 {[%emt 0:05:42]} 16. Nxc6 {[%emt 0:02:44]} Bxc6 {[%emt 0:00:40]} 17. Nb6 {[%emt 1:04:14]} Rb8 {[%emt 0:00:47]} 18. Nc4 {[%emt 0:00:00]} O-O {[%emt 0:01:50]} 19. Rf1 {[%emt 0:00:00]} Rfc8 {[%emt 0:05:24]} 20. Bd3 {[%emt 0:00:00]} Bb5 {[%emt 0:02:07]} 21. Bb6 {[%emt 0:02:00]} Qc6 {[%emt 0:08:04]} 22. Ne3 {[%emt 0:00:00]} Qxb6 {[%emt 0:03:02]} 23. f5 {[%emt 0:00:00]} Qc5 {[%emt 0:06:30]} 24. fxe6 {[%emt 0:00:00]} dxe6 {[%emt 0:00:35]} 25. Kb1 {[%emt 0:00:00]} Bxd3 {[%emt 0:00:41]} 26. Rxd3 {[%emt 0:00:00]} Rd8 {[%emt 0:01:05]} 27. Rxd8+ {[%emt 0:00:00]} Rxd8 {[%emt 0:00:10]} 28. g4 {[%emt 0:00:00]} Nd5 {[%emt 0:02:20]} 29. Nxd5 {[%emt 0:00:00]} Qxd5 {[%emt 0:00:20]} 30. b3 {[%emt 0:00:00]} Bf6 {[%emt 0:00:23]} 0-1

[Event "Romanian Women Championship 2024"]
[Site "Eforie Nord"]
[Date "2024.02.29"]
[Round "7.9"]
[White "Obada, Ema"]
[Black "Sariteanu, Sabina"]
[Result "1-0"]
[ECO "B42"]
[WhiteElo "1969"]
[BlackElo "1700"]
[Annotator "NA RC"]
[PlyCount "59"]
[EventDate "2024.02.24"]
[EventType "swiss"]
[EventCountry "ROU"]
[SourceTitle "playchess.com"]
[Source "ChessBase"]
[SourceQuality "1"]
[TimeControl "40/5400+30:900+30"]

1. e4 {[%emt 0:00:03]} c5 {[%emt 0:00:05]} 2. Nf3 {[%emt 0:00:08]} e6 {[%emt 0:00:06]} 3. d4 {[%emt 0:00:06]} cxd4 {[%emt 0:00:07]} 4. Nxd4 {[%emt 0:00:06]} a6 {[%emt 0:00:04]} 5. Bd3 {[%emt 0:00:18]} Nf6 {[%emt 0:02:04]} 6. O-O {[%emt 0:00:21]} d6 {[%emt 0:00:52]} 7. c4 {[%emt 0:01:55]} Nc6 {[%emt 0:01:10]} 8. Nxc6 {[%emt 0:03:21]} bxc6 {[%emt 0:00:07]} 9. Nc3 {[%emt 0:00:51]} Be7 {[%emt 0:02:27]} 10. f4 {[%emt 0:13:41]} O-O {[%emt 0:03:11]} 11. Kh1 {[%emt 0:09:11]} e5 {[%emt 0:00:41]} 12. Rb1 {[%emt 0:02:11]} Qb6 {[%emt 0:16:42]} 13. h3 {[%emt 0:11:39]} exf4 {[%emt 0:03:16]} 14. Bxf4 {[%emt 0:00:21]} Be6 {[%emt 0:00:09]} 15. b4 {[%emt 0:02:26]} Rfd8 {[%emt 0:01:42]} 16. a4 {[%emt 0:05:55]} d5 {[%emt 0:01:56]} 17. c5 {[%emt 0:07:43]} Qa7 {[%emt 0:03:13]} 18. e5 {[%emt 0:01:38]} Ne4 {[%emt 0:00:07]} 19. Bxe4 {[%emt 0:02:24]} dxe4 {[%emt 0:00:08]} 20. Qe2 {[%emt 0:00:35]} a5 {[%emt 0:00:26]} 21. Nxe4 {[%emt 0:15:41]} axb4 {[%emt 0:03:01]} 22. Qf2 {[%emt 0:07:55]} Bf5 {[%emt 0:00:55]} 23. Rxb4 {[%emt 0:02:14]} Bxe4 {[%emt 0:00:23]} 24. Rxe4 {[%emt 0:00:15]} Qxc5 {[%emt 0:00:35]} 25. Qg3 {[%emt 0:01:54]} Qa3 {[%emt 0:03:43]} 26. Qg4 {[%emt 0:03:40]} h5 {[%emt 0:00:20]} 27. Qxh5 {[%emt 0:00:14]} Rxa4 {[%emt 0:00:06]} 28. Bc1 {[%emt 0:00:24]} g6 {[%emt 0:06:08]} 29. Bxa3 {[%emt 0:00:25]} gxh5 {[%emt 0:00:07]} 30. Rxa4 {[%emt 0:00:02]} 1-0